bitfinex-derivatives/quotes_BTCF0:USTF0_20250119
["timestamp","ask_amount","ask_price","bid_price","bid_amount"]
[1737294192053,0.408372,105270.0,105260.0,0.22688512]
[1737294193443,0.408372,105270.0,105260.0,0.39700215]
[1737294194960,0.047575,105260.0,105250.0,0.17011703]
[1737294195257,0.408375,105260.0,105250.0,0.17011703]
[1737294197658,0.047579,105250.0,105240.0,0.88020003]
[1737294198854,0.047579,105250.0,105240.0,0.88317647]
[1737294201555,0.047579,105250.0,105240.0,0.71305944]
[1737294202967,0.047579,105250.0,105240.0,0.710083]
[1737294203167,0.047579,105250.0,105240.0,0.6625]
[1737294204270,0.18839635,105250.0,105240.0,0.710084]
[1737294204567,0.21655682,105260.0,105250.0,0.057579]
[1737294204769,0.21655682,105260.0,105250.0,0.562679]
[1737294205070,0.21655682,105260.0,105250.0,0.56565506]
[1737294205571,0.047576,105260.0,105250.0,0.96265721]
[1737294208365,0.047576,105260.0,105250.0,0.98255386]
[1737294209778,0.047576,105260.0,105250.0,0.81243683]
[1737294210570,0.047576,105260.0,105250.0,0.80946077]
[1737294210881,0.047576,105260.0,105250.0,0.81243668]
[1737294213479,0.11394392,105270.0,105250.0,0.76485768]
[1737294213687,0.16151592,105270.0,105260.0,0.408375]
[1737294213888,0.16151592,105270.0,105260.0,0.41135091]
[1737294214391,0.11394392,105270.0,105260.0,0.42135091]
[1737294214576,0.11394392,105270.0,105260.0,0.418375]
[1737294214780,0.11394392,105270.0,105260.0,0.42135059]
[1737294215286,0.11394392,105270.0,105260.0,0.78215059]
[1737294215781,0.16150992,105280.0,105260.0,1.292627]
[1737294215985,0.16150992,105280.0,105270.0,0.46967]
[1737294216187,0.16150992,105280.0,105270.0,0.83344559]
[1737294217189,0.16150992,105280.0,105270.0,1.00379069]
[1737294218586,0.16150992,105280.0,105270.0,1.00379064]
[1737294219879,0.047566,105280.0,105270.0,1.00379064]
[1737294221090,0.16150992,105280.0,105270.0,0.83344554]
[1737294222385,0.16150992,105280.0,105270.0,0.00297554]
[1737294222590,0.04757,105270.0,105260.0,0.5887201]
[1737294222792,0.04757,105270.0,105260.0,0.59169588]
[1737294223779,0.16151392,105270.0,105260.0,0.42135078]
[1737294224487,0.16151392,105270.0,105260.0,0.42135081]
[1737294226592,0.04757,105270.0,105260.0,0.42135081]
[1737294227783,0.04757,105270.0,105260.0,0.418375]
[1737294227990,0.04757,105270.0,105260.0,0.5887201]
[1737294229094,0.1614904,105270.0,105260.0,0.58169598]
[1737294229494,0.1614904,105270.0,105260.0,0.53412098]
[1737294229690,0.8127904,105270.0,105260.0,0.53412098]
[1737294231796,0.83288746,105270.0,105260.0,0.53412098]
[1737294235800,0.83288746,105270.0,105260.0,0.36377588]
[1737294235801,0.88794788,105270.0,105260.0,0.36377588]
[1737294236396,0.88794788,105270.0,105260.0,0.36377594]
[1737294237107,1.03053138,105270.0,105260.0,0.363776]
[1737294238504,0.88794788,105270.0,105260.0,0.363776]
[1737294240909,0.42995082,105270.0,105260.0,0.411351]
[1737294241213,0.21655082,105270.0,105260.0,0.411351]
[1737294241406,0.04757,105270.0,105260.0,0.411351]
[1737294241703,0.04757,105270.0,105260.0,0.41135095]
[1737294242504,0.04757,105270.0,105260.0,0.63823607]
[1737294242709,0.16163988,105270.0,105260.0,0.63823607]
[1737294243904,0.16163988,105270.0,105260.0,0.63823605]
[1737294245201,0.16163988,105270.0,105260.0,0.80876631]
[1737294246309,0.16163988,105270.0,105260.0,0.83251631]
[1737294246711,0.30422724,105270.0,105260.0,0.83251631]
[1737294247114,0.30422724,105270.0,105260.0,0.78494131]
[1737294251116,0.19015736,105270.0,105260.0,0.78494131]
[1737294251511,0.19015736,105270.0,105260.0,0.78494132]
[1737294253013,0.19015736,105270.0,105260.0,0.83251632]
[1737294253513,0.19015736,105270.0,105260.0,1.06021632]
[1737294253711,0.19015736,105270.0,105260.0,0.88968606]
[1737294255715,0.19015736,105270.0,105260.0,1.17327735]
[1737294258319,0.21655082,105270.0,105260.0,0.83356897]
[1737294259424,0.26283667,105270.0,105260.0,0.83356897]
[1737294260109,0.21526667,105270.0,105260.0,0.83356897]
[1737294260416,0.21526667,105270.0,105260.0,0.83833011]
[1737294261022,0.31176579,105270.0,105260.0,0.8944472]
[1737294261613,0.31176579,105270.0,105260.0,0.89444697]
[1737294263518,0.31176579,105270.0,105260.0,0.8944469]
[1737294263920,0.31176579,105270.0,105260.0,1.0650808]
[1737294265425,0.14278497,105270.0,105260.0,0.8944469]
[1737294266525,0.11416497,105270.0,105260.0,1.31850026]
[1737294266821,0.11416497,105270.0,105260.0,1.3368338]
[1737294268019,0.11416497,105270.0,105260.0,1.33683374]
[1737294269926,0.16173497,105270.0,105260.0,1.33683374]
[1737294271426,0.16173497,105270.0,105260.0,1.33683345]
[1737294273434,0.16173497,105270.0,105260.0,0.9132012]
[1737294274829,0.16173497,105270.0,105260.0,1.2740012]
[1737294275922,0.16173497,105270.0,105260.0,1.26626477]
[1737294276127,0.16173497,105270.0,105260.0,1.2740012]
[1737294277232,0.30451994,105270.0,105260.0,1.44455016]
[1737294277428,0.30451994,105270.0,105260.0,1.44455077]
[1737294278421,0.19035497,105270.0,105260.0,1.42621723]
[1737294278927,0.19035497,105270.0,105260.0,1.06541723]
[1737294279823,0.35933579,105270.0,105260.0,0.838111]
[1737294281028,0.19035497,105270.0,105260.0,0.89486827]
[1737294281226,0.20866238,105270.0,105260.0,0.89486827]
[1737294282135,0.19035497,105270.0,105260.0,0.89486827]
[1737294283435,0.30448037,105270.0,105260.0,0.89486868]
[1737294285425,0.30448037,105270.0,105260.0,0.89486862]
[1737294288436,0.35933579,105270.0,105260.0,0.83819154]
[1737294289336,0.35933579,105270.0,105260.0,0.83045415]
[1737294289534,0.35933579,105270.0,105260.0,0.83819154]
[1737294290233,0.35933579,105270.0,105260.0,0.61049154]
[1737294290428,0.58113579,105270.0,105260.0,0.61049154]
[1737294290937,0.41215497,105270.0,105260.0,0.61049154]
[1737294291952,0.41215497,105270.0,105260.0,0.60275415]
[1737294292138,0.41215497,105270.0,105260.0,0.6104917]
[1737294293235,0.43835082,105270.0,105260.0,0.43986255]
[1737294295642,0.4120095,105270.0,105260.0,0.79022293]
[1737294296640,0.4120095,105270.0,105260.0,0.78546136]
[1737294297042,0.4120095,105270.0,105260.0,0.55815513]
[1737294300045,0.4120095,105270.0,105260.0,0.55815517]
[1737294300648,0.4120095,105270.0,105260.0,0.60573017]
[1737294300649,0.1902095,105270.0,105260.0,0.60573017]
[1737294300836,0.1902095,105270.0,105260.0,0.82303017]
[1737294302141,0.1426395,105270.0,105260.0,0.83303017]
[1737294302544,0.1426395,105270.0,105260.0,0.88970725]
[1737294302846,0.1426395,105270.0,105260.0,0.88970707]
[1737294303245,0.1902095,105270.0,105260.0,0.88970707]
[1737294303752,0.1902095,105270.0,105260.0,0.89446849]
[1737294304148,0.30433812,105270.0,105260.0,0.89446849]
[1737294304649,0.30433812,105270.0,105260.0,0.88673123]
[1737294304844,0.30433812,105270.0,105260.0,0.89446847]
[1737294305656,0.1902095,105270.0,105260.0,0.89446847]
[1737294308663,0.1902095,105270.0,105260.0,0.89446824]
[1737294309168,0.1426395,105270.0,105260.0,0.89446824]
[1737294309368,0.1426395,105270.0,105260.0,1.53955706]
[1737294310557,0.21526232,105270.0,105260.0,1.0649935]
[1737294311763,0.26282832,105280.0,105270.0,0.04757]
[1737294311974,0.26282832,105280.0,105270.0,0.40837]
[1737294312873,0.047566,105280.0,105270.0,0.63467]
[1737294313474,0.047566,105280.0,105270.0,0.64240662]
[1737294313878,0.047566,105280.0,105270.0,0.86410662]
[1737294315170,0.21879616,105280.0,105270.0,0.86410656]
[1737294315467,0.17123016,105280.0,105270.0,0.87410656]
[1737294316679,0.21751057,105280.0,105270.0,1.04463182]
[1737294317782,0.14266067,105280.0,105270.0,1.27193805]
[1737294319870,0.14266067,105280.0,105270.0,1.28203992]
[1737294320070,0.14266067,105280.0,105270.0,1.28977631]
[1737294320684,0.25675223,105280.0,105270.0,1.28977631]
[1737294321885,0.30431823,105280.0,105270.0,1.28977631]
[1737294322186,0.16165756,105280.0,105270.0,1.11925105]
[1737294322579,0.16165756,105280.0,105270.0,1.11925079]
[1737294326088,0.19022667,105280.0,105270.0,1.0619755]
[1737294328787,0.19022667,105280.0,105270.0,0.6139755]
[1737294329083,0.85952667,105280.0,105270.0,0.17300637]
[1737294329277,1.22032667,105280.0,105270.0,0.17300637]
[1737294329474,1.22032667,105280.0,105270.0,0.17003094]
[1737294329690,0.04757,105270.0,105260.0,0.57840494]
[1737294329878,0.04757,105270.0,105260.0,0.58614241]
[1737294330280,0.34757,105270.0,105260.0,0.00773747]
[1737294330484,0.34757,105270.0,105220.0,1.06802267]
[1737294330485,0.047579,105250.0,105220.0,1.06802267]
[1737294330791,0.408388,105230.0,105220.0,0.2269251]
[1737294330979,0.408388,105230.0,105220.0,0.0014251]
[1737294331291,0.047593,105220.0,105210.0,0.2243]
[1737294331475,0.047597,105210.0,105200.0,1.14112898]
[1737294331675,0.408397,105210.0,105200.0,1.14112898]
[1737294332085,0.408397,105210.0,105200.0,1.12267074]
[1737294332483,0.408397,105210.0,105200.0,0.2255]
[1737294333989,0.408397,105210.0,105190.0,0.505805]
[1737294333990,0.50304338,105210.0,105190.0,0.282205]
[1737294334190,0.408402,105200.0,105190.0,0.282205]
[1737294335388,0.408402,105200.0,105190.0,0.2246]
[1737294336186,0.047606,105190.0,105180.0,0.26907465]
[1737294336492,0.408406,105190.0,105180.0,0.26907465]
[1737294337680,0.408406,105190.0,105180.0,0.2276]
[1737294345095,0.408406,105190.0,105180.0,0.25136]
[1737294345592,0.047615,105180.0,105140.0,0.057628]
[1737294345796,0.047623,105160.0,105150.0,0.4415]
[1737294346296,0.408423,105160.0,105150.0,0.4415]
[1737294347387,0.3608,105170.0,105150.0,0.8023]
[1737294347590,0.408416,105170.0,105160.0,0.04762]
[1737294349802,0.04762,105160.0,105150.0,0.859924]
[1737294350098,0.04762,105160.0,105150.0,0.86290276]
[1737294351102,0.04762,105160.0,105150.0,0.499124]
[1737294351302,0.408416,105170.0,105160.0,0.04762]
[1737294355102,0.37859208,105180.0,105160.0,0.04762]
[1737294355303,0.408411,105180.0,105170.0,0.047615]
[1737294355497,0.408411,105180.0,105170.0,0.257215]
[1737294357302,0.408411,105180.0,105170.0,0.2601935]
[1737294360401,0.52195487,105180.0,105170.0,0.2601935]
[1737294361607,0.52195487,105180.0,105170.0,0.2125785]
[1737294361804,0.52195487,105180.0,105170.0,0.0029785]
[1737294362010,0.52195487,105180.0,105160.0,0.047618]
[1737294362011,0.047615,105170.0,105160.0,0.047618]
[1737294362210,0.408415,105170.0,105160.0,0.05059663]
[1737294362910,0.408415,105170.0,105160.0,0.07436663]
[1737294363307,0.55065838,105170.0,105160.0,0.07436663]
[1737294363504,0.18985838,105170.0,105160.0,0.07436663]
[1737294365413,0.55065838,105170.0,105160.0,0.07436663]
[1737294366911,0.55065838,105170.0,105160.0,0.02674863]
[1737294367502,0.57964516,105170.0,105160.0,0.02674863]
[1737294369005,0.57964516,105170.0,105160.0,0.02377]
[1737294369907,0.78854516,105170.0,105160.0,0.02377]
[1737294370103,0.04762,105160.0,105150.0,0.2304]
[1737294370310,0.047629,105140.0,105130.0,0.84555969]
[1737294370519,0.047629,105140.0,105130.0,1.07318026]
[1737294370711,0.047629,105140.0,105130.0,1.05713902]
[1737294371016,0.408429,105140.0,105130.0,1.05713902]
[1737294371212,0.408429,105140.0,105130.0,0.99443619]
[1737294371814,0.52254457,105140.0,105130.0,0.710132]
[1737294372013,0.47491557,105140.0,105130.0,0.71311148]
[1737294372215,0.11411557,105140.0,105130.0,1.07391148]
[1737294372520,0.11411557,105140.0,105130.0,1.094712]
[1737294373109,0.19026946,105150.0,105130.0,1.094712]
[1737294373110,0.047625,105150.0,105130.0,1.094712]
[1737294374418,0.30430979,105150.0,105130.0,1.094712]
[1737294375922,0.30430979,105150.0,105140.0,0.047629]
[1737294377121,0.66510979,105150.0,105140.0,0.047629]
[1737294377323,0.19022766,105150.0,105140.0,0.047629]
[1737294377620,0.55102766,105150.0,105140.0,0.047629]
[1737294380222,0.57954819,105150.0,105140.0,0.047629]
[1737294380724,0.57954819,105150.0,105140.0,0.05060828]
[1737294381315,0.57954819,105150.0,105140.0,0.00297928]
[1737294381630,0.57954819,105150.0,105140.0,0.0029793]
[1737294383628,0.62717619,105150.0,105140.0,0.00297943]
[1737294385627,0.57954819,105150.0,105140.0,0.00297945]
[1737294385830,0.55090451,105150.0,105140.0,0.00297945]
[1737294386329,0.56758881,105150.0,105140.0,0.00297945]
[1737294387722,0.55090451,105150.0,105140.0,0.00297941]
[1737294387928,0.14247951,105150.0,105140.0,0.41140841]
[1737294388124,0.14247951,105150.0,105140.0,0.42140841]
[1737294389225,0.11401208,105150.0,105140.0,0.42140841]
[1737294389720,0.16163608,105150.0,105140.0,0.42140841]
[1737294391030,0.16163608,105150.0,105140.0,0.06060841]
[1737294391232,0.16163608,105150.0,105140.0,0.42140841]
[1737294391423,0.16163608,105150.0,105140.0,0.43750578]
[1737294392230,0.16163608,105150.0,105140.0,0.66563084]
[1737294393831,0.16163608,105150.0,105140.0,0.66563034]
[1737294395234,0.16163608,105150.0,105140.0,0.30483034]
[1737294396727,0.16163608,105150.0,105140.0,0.66563034]
[1737294397029,0.11401208,105150.0,105140.0,0.66563034]
[1737294398727,0.11401208,105150.0,105140.0,0.68940034]
[1737294399533,0.11401208,105150.0,105140.0,0.31250297]
[1737294399534,0.16163608,105150.0,105140.0,0.31250297]
[1737294400030,0.52243608,105150.0,105140.0,0.31250297]
[1737294401333,0.53192319,105150.0,105140.0,0.08437791]
[1737294401535,0.17112319,105150.0,105140.0,0.08437791]
[1737294401828,0.17112319,105150.0,105140.0,0.08437798]
[1737294402235,0.14259983,105150.0,105140.0,0.081399]
[1737294402425,0.14259983,105150.0,105140.0,0.44517802]
[1737294403741,0.14259983,105150.0,105140.0,0.08437806]
[1737294404032,0.14259983,105150.0,105140.0,0.44517806]
[1737294405339,0.14259983,105150.0,105140.0,0.08437806]
[1737294406040,0.19022383,105150.0,105140.0,0.08437806]
[1737294406430,0.55102383,105150.0,105140.0,0.08437806]
[1737294406940,0.55102383,105150.0,105140.0,0.02674906]
[1737294407136,0.78132383,105150.0,105140.0,0.02674906]
[1737294408028,0.638724,105150.0,105140.0,0.02674906]
[1737294409326,0.80985745,105150.0,105140.0,0.02377]
[1737294410036,0.82655359,105150.0,105140.0,0.02674948]
[1737294413440,0.82655359,105150.0,105140.0,0.00297948]
[1737294415250,0.047633,105130.0,105120.0,0.43972008]
[1737294415433,0.408433,105130.0,105120.0,0.65809975]
[1737294416043,0.408433,105130.0,105120.0,0.44650473]
[1737294416237,0.408433,105130.0,105120.0,0.49414273]
[1737294416538,0.408433,105130.0,105120.0,0.26601767]
[1737294416539,0.55093229,105130.0,105120.0,0.26601767]
[1737294419345,0.5223281,105130.0,105120.0,0.26601767]
[1737294421440,0.5223281,105130.0,105120.0,0.2660178]
[1737294423046,0.1615281,105130.0,105120.0,0.2760178]
[1737294423744,0.1138951,105130.0,105120.0,0.6368178]
[1737294424246,0.31363274,105140.0,105130.0,0.057633]
[1737294424441,0.31363274,105140.0,105130.0,0.8438128]
[1737294425040,0.17113345,105150.0,105140.0,0.047629]
[1737294425240,0.17113345,105150.0,105140.0,0.4114088]
[1737294425745,0.17113345,105150.0,105140.0,0.41140795]
[1737294425944,0.21875745,105150.0,105140.0,0.41140795]
[1737294426246,0.047624,105150.0,105140.0,0.41140795]
[1737294428251,0.047624,105150.0,105140.0,0.63480795]
[1737294428451,0.047624,105150.0,105140.0,0.27400795]
[1737294429149,0.047624,105150.0,105140.0,0.631829]
[1737294429350,0.047624,105150.0,105140.0,0.634808]
[1737294430759,0.408422,105160.0,105150.0,0.047624]
[1737294431052,0.408422,105160.0,105150.0,0.266703]
[1737294431236,0.408422,105160.0,105150.0,0.487003]
[1737294431441,0.047622,105160.0,105150.0,0.487003]
[1737294432049,0.047622,105160.0,105150.0,0.49176926]
[1737294433142,0.047622,105160.0,105150.0,0.49176917]
[1737294433653,0.047622,105160.0,105150.0,0.49176919]
[1737294433843,0.047622,105160.0,105150.0,0.49176917]
[1737294434646,0.408422,105160.0,105150.0,0.48700291]
[1737294435239,0.408422,105160.0,105150.0,0.00297902]
[1737294435543,0.047624,105150.0,105140.0,0.47529506]
[1737294435749,0.408424,105150.0,105140.0,0.25014924]
[1737294438451,0.57955745,105150.0,105140.0,0.25014924]
[1737294439357,0.57955745,105150.0,105140.0,0.0267494]
[1737294439556,0.57955745,105150.0,105140.0,0.0029794]
[1737294440056,0.047629,105140.0,105130.0,0.26493]
[1737294440352,0.047629,105140.0,105130.0,0.26790951]
[1737294440353,0.408429,105140.0,105130.0,0.26790951]
[1737294440859,0.408429,105140.0,105130.0,0.21027951]
[1737294441051,0.047633,105130.0,105120.0,0.48673392]
[1737294441246,0.047633,105130.0,105120.0,0.4897135]
[1737294441442,0.047633,105130.0,105120.0,0.4997135]
[1737294441745,0.408433,105130.0,105120.0,0.4997135]
[1737294441943,0.047633,105130.0,105120.0,0.49971356]
[1737294442850,0.408433,105130.0,105120.0,0.49971356]
[1737294443358,0.408433,105130.0,105120.0,0.49971364]
[1737294444950,0.408433,105130.0,105120.0,0.54735164]
[1737294445455,0.047633,105130.0,105120.0,0.54735164]
[1737294449248,0.047633,105130.0,105120.0,0.54735158]
[1737294449450,0.047633,105130.0,105120.0,0.77547664]
[1737294451662,0.047633,105130.0,105120.0,0.71843915]
[1737294453061,0.047633,105130.0,105120.0,0.68960523]
[1737294454063,0.047633,105130.0,105120.0,0.51851766]
[1737294454262,0.047633,105130.0,105120.0,0.87931766]
[1737294454763,0.047633,105130.0,105120.0,0.51851766]
[1737294454966,0.047633,105130.0,105120.0,0.87931766]
[1737294455262,0.047633,105130.0,105120.0,0.88408502]
[1737294455463,0.18995518,105130.0,105120.0,0.88408502]
[1737294456165,0.18995518,105130.0,105120.0,0.87931766]
[1737294457065,0.047633,105130.0,105120.0,0.87931766]
[1737294457364,0.047633,105130.0,105120.0,0.87931757]
[1737294458165,0.047633,105130.0,105120.0,1.05040514]
[1737294459566,0.18995518,105130.0,105120.0,0.87931757]
[1737294461363,0.047633,105130.0,105120.0,1.27853019]
[1737294462270,0.047633,105130.0,105120.0,1.28329749]
[1737294463062,0.047633,105130.0,105120.0,1.27853019]
[1737294464662,0.67425563,105140.0,105120.0,1.23089219]
[1737294464859,0.72188563,105140.0,105130.0,0.272533]
[1737294465055,0.72188563,105140.0,105130.0,0.27551256]
[1737294465256,0.36108563,105140.0,105130.0,0.28551255]
[1737294465461,0.21876345,105140.0,105130.0,0.28551255]
[1737294465870,0.21876345,105140.0,105130.0,0.2855124]
[1737294466761,0.21876345,105140.0,105130.0,0.87443746]
[1737294466762,0.1902663,105140.0,105130.0,0.87443746]
[1737294467169,0.1902663,105140.0,105130.0,0.87920442]
[1737294467469,0.1902663,105140.0,105130.0,0.87920432]
[1737294467872,0.21876345,105140.0,105130.0,0.82250859]
[1737294468671,0.21876345,105140.0,105130.0,0.81476233]
[1737294468869,0.21876345,105140.0,105130.0,0.82250859]
[1737294469070,0.21876345,105140.0,105130.0,1.05063365]
[1737294470375,0.36138786,105140.0,105130.0,1.05063365]
[1737294471070,0.36138786,105140.0,105130.0,1.06547544]
[1737294471772,0.36138786,105140.0,105130.0,0.83735038]
[1737294472975,0.72218786,105140.0,105130.0,0.17917559]
[1737294473170,0.72218786,105140.0,105120.0,0.51309561]
[1737294473171,1.31568786,105140.0,105120.0,0.51309561]
[1737294473371,0.408433,105130.0,105120.0,0.51309561]
[1737294474671,0.047638,105120.0,105110.0,0.2269]
[1737294474869,0.408438,105120.0,105110.0,0.2269]
[1737294475983,0.57926481,105120.0,105110.0,0.2269]
[1737294478586,0.72149155,105120.0,105110.0,0.2269]
[1737294479681,0.55066474,105120.0,105110.0,0.2269]
[1737294482883,0.55066474,105120.0,105110.0,0.22711101]
[1737294483784,0.14222674,105120.0,105110.0,0.64555301]
[1737294483988,0.14222674,105120.0,105110.0,0.65032097]
[1737294485189,0.14222674,105120.0,105110.0,0.65330077]
[1737294485389,0.14222674,105120.0,105110.0,0.29250077]
[1737294485687,0.5697648,105130.0,105110.0,0.29250077]
[1737294485882,0.1613278,105130.0,105120.0,0.2266]
[1737294486086,0.5221278,105130.0,105120.0,0.2295798]
[1737294486583,0.1613278,105130.0,105120.0,0.4442798]
[1737294486783,0.30355454,105130.0,105120.0,0.4919178]
[1737294487084,0.25591954,105130.0,105120.0,0.50668567]
[1737294487280,0.30355254,105130.0,105120.0,0.50668567]
[1737294488478,0.047633,105130.0,105120.0,0.50668567]
[1737294489078,0.25591954,105140.0,105130.0,0.057633]
[1737294489280,0.17082681,105150.0,105140.0,0.047629]
[1737294489484,0.047622,105160.0,105150.0,0.047624]
[1737294489688,0.047622,105160.0,105150.0,1.31547185]
[1737294489984,0.047622,105160.0,105150.0,1.33924185]
[1737294490581,0.047622,105160.0,105150.0,1.33149531]
[1737294490777,0.047622,105160.0,105150.0,1.33924001]
[1737294491786,0.047622,105160.0,105150.0,0.97844001]
[1737294491981,0.408422,105160.0,105150.0,0.12311601]
[1737294492182,0.408422,105160.0,105150.0,0.11537131]
[1737294492379,0.408422,105160.0,105150.0,0.09160131]
[1737294494589,0.57907169,105160.0,105150.0,0.09160131]
[1737294495689,0.047628,105150.0,105130.0,0.294502]
[1737294495890,0.408428,105150.0,105130.0,0.27371145]
[1737294496387,0.047629,105140.0,105130.0,0.27371145]
[1737294497678,0.408427,105150.0,105130.0,0.27371145]
[1737294497883,0.408427,105150.0,105130.0,0.32134145]
[1737294498184,0.408427,105150.0,105130.0,0.27370945]
[1737294499291,0.456055,105150.0,105130.0,0.27370945]
[1737294499496,0.47123074,105150.0,105130.0,0.27370945]
[1737294500282,0.42360274,105150.0,105130.0,0.27370945]
[1737294500484,0.408427,105150.0,105130.0,0.27370945]
[1737294500686,0.408427,105150.0,105140.0,0.047629]
[1737294500993,0.408427,105150.0,105140.0,0.05060845]
[1737294502393,0.408427,105150.0,105140.0,0.00297945]
[1737294504386,0.047627,105150.0,105140.0,0.00297945]
[1737294504592,0.047627,105150.0,105140.0,0.05060845]
[1737294504985,0.408427,105150.0,105140.0,0.05060845]
[1737294505190,0.047627,105150.0,105140.0,0.05060845]
[1737294505493,0.408427,105150.0,105140.0,0.05060845]
[1737294506497,0.408427,105150.0,105140.0,0.00297945]
[1737294506997,0.408427,105150.0,105140.0,0.21277945]
[1737294509699,0.82667793,105160.0,105150.0,0.047624]
[1737294509700,0.23733368,105160.0,105150.0,0.047624]
[1737294509997,0.17064969,105160.0,105150.0,0.87486985]
[1737294510596,0.57906669,105170.0,105150.0,0.87486985]
[1737294510790,0.57906669,105170.0,105160.0,0.2106]
[1737294510990,0.57906669,105170.0,105160.0,0.21357945]
[1737294511897,0.408417,105170.0,105160.0,0.21357945]
[1737294513304,0.57906669,105170.0,105160.0,0.26119945]
[1737294514293,0.57906669,105170.0,105160.0,0.28496945]
[1737294514695,0.57906669,105170.0,105160.0,0.28496874]
[1737294516706,0.21826669,105170.0,105160.0,0.64576874]
[1737294517305,0.21826669,105170.0,105160.0,0.28496874]
[1737294517510,0.57906669,105170.0,105160.0,0.28496874]
[1737294517909,0.21826669,105170.0,105160.0,0.28496874]
[1737294518102,0.21826669,105170.0,105160.0,0.64576874]
[1737294518296,0.21826669,105170.0,105160.0,0.28496874]
[1737294519416,0.17064969,105170.0,105160.0,0.28496874]
[1737294520409,0.21697704,105170.0,105160.0,0.28496874]
[1737294520612,0.26459204,105170.0,105160.0,0.28496874]
[1737294521613,0.62539204,105170.0,105160.0,0.28496874]
[1737294521813,0.62539204,105170.0,105160.0,0.02377]
[1737294522015,1.01379204,105170.0,105150.0,0.2195]
[1737294522215,0.047624,105150.0,105140.0,0.43879661]
[1737294522512,0.047624,105150.0,105140.0,0.22779661]
[1737294522513,0.408424,105150.0,105140.0,0.22779661]
[1737294522711,0.627024,105150.0,105140.0,0.22779661]
[1737294523709,0.047629,105140.0,105120.0,0.43259487]
[1737294523912,0.408433,105130.0,105120.0,0.65954199]
[1737294524317,0.408433,105130.0,105120.0,0.43794712]
[1737294524510,0.408433,105130.0,105120.0,0.43317966]
[1737294525113,0.55076425,105130.0,105120.0,0.43317966]
[1737294525512,0.55076425,105130.0,105110.0,0.02399101]
[1737294525513,0.047638,105120.0,105110.0,0.02399101]
[1737294525813,0.408438,105120.0,105110.0,0.03173938]
[1737294526012,0.408438,105120.0,105110.0,0.02697115]
[1737294526515,0.408438,105120.0,105110.0,0.00021101]
[1737294528116,0.57908769,105120.0,105110.0,0.00021101]
[1737294529517,0.72125234,105120.0,105110.0,0.00021101]
[1737294529718,0.73652645,105120.0,105110.0,0.00021101]
[1737294530826,0.56587676,105120.0,105110.0,0.00021101]
[1737294532722,0.20507676,105120.0,105110.0,0.05083318]
[1737294533223,0.42371211,105120.0,105110.0,0.05083318]
[1737294533527,0.06291211,105120.0,105110.0,0.05083318]
[1737294533721,0.42371211,105120.0,105110.0,0.05083318]
[1737294534022,0.42371211,105120.0,105110.0,0.00319118]
[1737294534323,0.42371211,105120.0,105110.0,0.00021101]
[1737294536217,0.64381211,105120.0,105110.0,0.00021101]
[1737294544124,0.78597676,105120.0,105110.0,0.00021101]
[1737294544424,0.047642,105110.0,105100.0,0.5358]
[1737294544629,0.408442,105110.0,105100.0,0.5358]
[1737294545830,0.408442,105110.0,105100.0,0.583447]
[1737294546130,0.408442,105110.0,105100.0,0.5358]
[1737294546328,0.408442,105110.0,105100.0,0.00298045]
[1737294546530,0.408442,105110.0,105080.0,0.2088]
[1737294546531,0.047652,105090.0,105080.0,0.2088]
[1737294546735,0.408452,105090.0,105080.0,0.2088]
[1737294549523,0.42328008,105090.0,105080.0,0.2088]
[1737294550032,0.56544473,105090.0,105080.0,0.2088]
[1737294551030,0.53680305,105090.0,105080.0,0.2088]
[1737294552932,0.89760305,105090.0,105080.0,0.2088]
[1737294554827,1.0397677,105090.0,105080.0,0.2088]
[1737294556033,0.89760305,105090.0,105080.0,0.2088]
[1737294556225,0.047656,105080.0,105070.0,0.4415]
[1737294556426,0.408456,105080.0,105070.0,0.2135]
[1737294556826,0.633656,105080.0,105070.0,0.2135]
[1737294557828,0.88934362,105080.0,105070.0,0.2135]
[1737294559435,0.77582065,105080.0,105070.0,0.2135]
[1737294561135,0.77582065,105080.0,105060.0,0.2231]
[1737294561336,0.408461,105070.0,105060.0,0.22608173]
[1737294563833,0.047661,105070.0,105060.0,0.22608169]
[1737294564038,0.408461,105070.0,105060.0,0.22608169]
[1737294564429,0.408461,105070.0,105060.0,0.2231]
[1737294564633,0.408461,105070.0,105050.0,0.4391]
[1737294564942,0.408465,105060.0,105050.0,0.44208194]
[1737294565440,0.408465,105060.0,105050.0,0.4391]
[1737294566442,0.408465,105060.0,105050.0,0.2251]
[1737294569836,0.04767,105050.0,105040.0,0.45129661]
[1737294570040,0.04767,105050.0,105040.0,0.45427895]
[1737294570041,0.40847,105050.0,105040.0,0.45427895]
[1737294570947,0.40847,105050.0,105040.0,0.45129661]
[1737294571544,0.40847,105050.0,105040.0,0.45427893]
[1737294572849,0.40847,105050.0,105040.0,0.45129661]
[1737294573941,0.4220516,105050.0,105040.0,0.66609661]
[1737294574952,0.4220516,105050.0,105040.0,0.66907897]
[1737294575352,0.53561415,105050.0,105040.0,0.44128236]
[1737294581757,0.56421625,105050.0,105040.0,0.44128236]
[1737294583753,0.56421625,105050.0,105040.0,0.44128231]
[1737294585460,0.59270129,105050.0,105040.0,0.44128231]
[1737294587159,0.59270129,105050.0,105040.0,0.4383]
[1737294588374,0.56438157,105050.0,105040.0,0.4383]
[1737294589860,0.59270129,105050.0,105040.0,0.4383]
[1737294590849,0.4220516,105050.0,105040.0,0.4383]
[1737294592168,0.59270129,105050.0,105040.0,0.4383]
[1737294593458,0.4220516,105050.0,105040.0,0.4383]
[1737294595167,0.62114291,105050.0,105040.0,0.4383]
[1737294598966,0.62114291,105050.0,105040.0,0.2235]
[1737294601260,0.21267291,105050.0,105040.0,0.5843]
[1737294601457,0.29492081,105060.0,105050.0,0.01]
[1737294601759,0.29428081,105060.0,105050.0,0.24148246]
[1737294602260,0.06674788,105060.0,105050.0,0.24148246]
[1737294602459,0.4412569,105060.0,105050.0,0.24148246]
[1737294603169,0.0804569,105060.0,105050.0,0.2891519]
[1737294603667,0.25160424,105060.0,105050.0,0.46080404]
[1737294603868,0.39422702,105060.0,105050.0,0.46080404]
[1737294604372,0.39422702,105060.0,105050.0,0.41313404]
[1737294604673,0.39422702,105060.0,105050.0,0.62783404]
[1737294605368,0.332852,105060.0,105050.0,0.62783404]
[1737294605562,0.3608,105070.0,105050.0,1.03630404]
[1737294605563,0.57960934,105070.0,105050.0,1.03630404]
[1737294605872,0.57960934,105070.0,105060.0,0.2161]
[1737294606371,0.57960934,105070.0,105060.0,0.21908165]
[1737294607575,0.57960934,105070.0,105060.0,0.21908164]
[1737294608773,0.408462,105070.0,105060.0,0.39073378]
[1737294610075,0.408462,105070.0,105060.0,0.38775214]